bitfinex-derivatives/quotes_BNBF0:USTF0_20250406
["timestamp","ask_amount","ask_price","bid_price","bid_amount"]
[1743901206714,0.42,592.82,592.14,0.29431047]
[1743901206910,0.42,592.82,592.12,1.25827326]
[1743901206911,0.42,592.82,592.13,0.29431047]
[1743901207110,0.42,592.82,592.14,0.29431047]
[1743901207316,0.42,592.82,592.15,0.29431047]
[1743901207515,0.42,592.82,592.13,0.29431047]
[1743901207715,0.42,592.82,592.14,0.29431047]
[1743901207911,0.42,592.82,592.13,0.29431047]
[1743901208216,0.42,592.82,592.14,0.29431047]
[1743901208415,0.42,592.82,592.13,0.29431047]
[1743901209111,0.42,592.82,592.14,0.29431047]
[1743901209316,0.42,592.82,592.1,0.29431047]
[1743901209512,0.42,592.82,592.15,0.29431047]
[1743901209715,0.42,592.82,592.16,0.29431047]
[1743901209911,0.42,592.82,592.1,0.29431047]
[1743901210119,0.42,592.82,592.11,0.29431047]
[1743901210417,0.42,592.82,592.12,0.29431047]
[1743901210618,0.42,592.82,592.04,0.29431047]
[1743901210812,0.42,592.82,592.08,0.29358665]
[1743901211011,0.42,592.82,592.09,0.29370978]
[1743901212316,0.42,592.82,592.08,0.29358665]
[1743901212617,0.42,592.82,592.09,0.29371257]
[1743901213619,0.42,592.82,592.1,0.29371257]
[1743901213915,0.42,592.82,592.11,0.29371257]
[1743901214117,0.42,592.82,592.01,1.25827326]
[1743901214316,0.42,592.82,592.02,0.29376455]
[1743901215920,0.42,592.82,592.01,1.25827326]
[1743901216222,0.42,592.82,592.02,0.29376488]
[1743901219627,0.42,592.82,592.07,1.25827326]
[1743901219826,0.42,592.82,592.08,0.29376488]
[1743901221320,0.42,592.82,591.99,0.29376488]
[1743901221524,0.42,592.82,592.0,0.29376488]
[1743901221727,0.42,592.82,591.99,0.29376488]
[1743901221926,0.42,592.82,592.0,0.29376488]
[1743901222123,0.42,592.82,591.99,0.29376488]
[1743901222331,0.42,592.82,592.0,0.29376488]
[1743901222524,0.42,592.82,591.99,0.29376488]
[1743901222724,0.42,592.82,592.0,0.29376155]
[1743901222930,0.42,592.82,592.01,0.29376155]
[1743901223229,0.42,592.82,592.02,0.29376155]
[1743901223432,0.42,592.82,592.03,0.29376155]
[1743901223631,0.42,592.82,591.99,0.29376155]
[1743901223929,0.42,592.82,592.0,0.29376155]
[1743901224130,0.42,592.82,591.99,0.29376155]
[1743901224331,0.42,592.82,592.0,0.29377255]
[1743901224531,0.42,592.82,591.99,0.29377255]
[1743901224732,0.42,592.82,592.0,0.29377255]
[1743901224933,0.42,592.82,591.99,0.29377255]
[1743901225633,0.42,592.82,591.85,1.26164697]
[1743901225634,0.42,592.82,592.0,0.29377255]
[1743901225830,0.42,592.82,591.98,0.2936585]
[1743901226029,0.42,592.82,591.99,0.29377255]
[1743901227634,0.42,592.82,591.98,0.2936585]
[1743901227835,0.42,592.82,591.99,0.29377549]
[1743901228637,0.42,592.82,592.0,0.29377549]
[1743901228837,0.42,592.82,592.01,0.29377549]
[1743901229037,0.42,592.82,591.99,0.29377549]
[1743901229231,0.42,592.82,592.0,0.29377549]
[1743901229435,0.42,592.82,591.99,0.29377549]
[1743901229737,0.42,592.82,592.0,0.29377549]
[1743901229938,0.42,592.82,591.99,0.29377549]
[1743901231131,0.42,592.82,592.0,0.29376649]
[1743901231333,0.42,592.82,592.01,0.29376649]
[1743901231637,0.42,592.82,592.02,0.29376649]
[1743901231838,0.42,592.82,592.03,0.29376649]
[1743901232034,0.42,592.82,591.94,0.29376649]
[1743901232339,0.42,592.82,591.99,1.25827326]
[1743901232540,0.42,592.82,592.0,0.29376649]
[1743901233943,0.42,592.82,591.99,1.25827326]
[1743901234143,0.42,592.82,592.0,0.29376651]
[1743901234344,0.42,592.82,592.01,0.29376705]
[1743901234540,0.42,592.82,591.95,0.29376705]
[1743901234743,0.42,592.82,591.96,0.29376705]
[1743901234942,0.42,592.82,591.95,0.29376705]
[1743901235142,0.42,592.82,591.96,0.29376705]
[1743901235339,0.42,592.82,591.95,0.29376705]
[1743901235543,0.42,592.82,591.96,0.29376705]
[1743901235744,0.42,592.82,591.97,0.29376705]
[1743901236043,0.42,592.82,591.98,0.29376705]
[1743901236242,0.42,592.82,591.95,0.29376705]
[1743901236438,0.42,592.82,591.96,0.29376705]
[1743901236643,0.42,592.82,591.95,0.29376705]
[1743901236844,0.42,592.82,591.96,0.29376705]
[1743901237037,0.42,592.82,591.92,0.29376705]
[1743901237743,0.42,592.82,591.93,0.29366221]
[1743901237943,0.42,592.82,591.94,0.29376705]
[1743901239146,0.42,592.82,591.95,1.25827326]
[1743901239348,0.42,592.82,591.96,0.29376705]
[1743901240047,0.42,592.82,591.95,1.25827326]
[1743901240248,0.42,592.82,591.96,0.29376646]
[1743901241048,0.42,592.82,591.97,1.25827326]
[1743901241246,0.42,592.82,591.98,0.29376646]
[1743901242749,0.42,592.82,591.97,1.25827326]
[1743901242948,0.42,592.82,591.98,0.29376986]
[1743901243747,0.42,592.82,591.99,1.25827326]
[1743901243943,0.42,592.82,592.0,0.29376986]
[1743901245050,0.42,592.82,591.99,1.25827326]
[1743901245254,0.42,592.82,592.0,0.29377038]
[1743901246051,0.42,592.82,591.99,1.25827326]
[1743901246248,0.42,592.82,592.0,0.29376681]
[1743901246854,0.42,592.82,592.05,1.25827326]
[1743901247153,0.42,592.82,592.06,0.29376681]
[1743901247651,0.42,592.82,592.05,1.25827326]
[1743901247857,0.42,592.82,592.06,0.2937668]
[1743901248958,0.42,592.82,592.1,1.25827326]
[1743901249158,0.42,592.82,592.11,0.2937668]
[1743901249460,0.42,592.82,592.12,0.2937665]
[1743901249753,0.42,592.82,592.13,0.2937665]
[1743901250053,0.42,592.82,592.1,1.25827326]
[1743901250254,0.42,592.82,592.11,0.2937668]
[1743901251255,0.42,592.82,592.06,0.2937668]
[1743901251459,0.42,592.82,592.07,0.2937668]
[1743901251658,0.42,592.82,592.06,0.2937668]
[1743901251859,0.42,592.82,592.07,0.2937668]
[1743901252158,0.42,592.82,592.08,0.2937668]
[1743901252359,0.42,592.82,592.06,0.2937668]
[1743901252659,0.42,592.82,592.07,0.2937668]
[1743901252855,0.42,592.82,592.06,0.2937668]
[1743901253060,0.42,592.82,592.07,0.2937668]
[1743901253259,0.42,592.82,592.08,0.2937668]
[1743901253454,0.42,592.82,592.05,0.2937668]
[1743901253660,0.42,592.82,592.06,0.2937668]
[1743901253860,0.42,592.82,592.05,0.2937668]
[1743901254161,0.42,592.82,592.04,1.25827326]
[1743901254359,0.42,592.82,592.05,0.29376789]
[1743901254560,0.42,592.82,592.1,1.25827326]
[1743901254761,0.42,592.82,592.11,0.29376789]
[1743901257359,0.42,592.82,592.11,1.55204115]
[1743901257564,0.42,592.82,592.12,0.29376789]
[1743901258464,0.42,592.82,592.11,1.25827326]
[1743901260167,0.42,592.82,591.89,0.33790062]
[1743901260367,0.42,592.82,591.9,0.29380216]
[1743901261768,0.29368452,592.81,591.9,0.29380216]
[1743901265881,0.78,592.8,591.9,0.29380216]
[1743901266979,0.78,592.8,591.89,0.33790062]
[1743901267181,0.78,592.8,591.9,0.29385821]
[1743901267981,0.29371302,592.79,591.9,0.29385821]
[1743901268578,0.29371302,592.79,591.89,0.33790062]
[1743901268774,0.29371302,592.79,591.9,0.29386111]
[1743901270485,0.78,592.8,591.89,0.33790062]
[1743901270683,0.78,592.8,591.9,0.29386077]
[1743901270882,0.2937155,592.78,591.9,0.29386077]
[1743901273486,0.78,592.8,591.9,0.29386077]
[1743901273685,1.11738191,592.8,591.7,1.25827326]
[1743901273888,0.29374897,592.79,591.71,0.29388418]
[1743901274386,0.29374897,592.79,591.72,0.29374897]
[1743901274588,0.29374897,592.79,591.73,0.29388418]
[1743901276485,1.11738191,592.8,591.73,0.29388418]
[1743901276690,1.11738191,592.8,591.57,0.29388418]
[1743901276991,0.29376633,592.79,591.72,0.29376633]
[1743901277185,0.29376633,592.79,591.57,0.3380834]
[1743901277384,0.29376633,592.79,591.58,0.29388117]
[1743901279488,0.33738191,592.8,591.58,0.29388117]
[1743901279691,0.763,592.78,591.58,0.29388117]
[1743901279893,1.05676509,592.78,591.59,0.29376509]
[1743901280091,1.05676509,592.78,591.6,0.29388117]
[1743901280393,0.33739899,592.77,591.6,0.29388117]
[1743901281794,0.651,592.76,591.6,0.29388117]
[1743901281995,0.98840468,592.76,591.6,0.29388117]
[1743901282792,0.29377997,592.75,591.59,0.29377997]
[1743901282994,0.29377997,592.75,591.6,0.29388117]
[1743901284596,0.29377997,592.75,591.59,0.29377997]
[1743901284795,0.29377997,592.75,591.6,0.29389521]
[1743901285296,0.29377997,592.75,591.61,0.29389521]
[1743901285498,0.98840468,592.76,591.62,0.29389521]
[1743901285693,0.98840468,592.76,591.63,0.29389521]
[1743901285897,0.29377997,592.74,591.64,0.29389521]
[1743901286097,0.29377997,592.74,591.65,0.29389521]
[1743901286298,0.29377997,592.74,591.66,0.29389521]
[1743901286494,0.29377997,592.74,591.67,0.29389521]
[1743901286694,0.29377997,592.74,591.61,0.29389521]
[1743901286898,0.29377997,592.74,591.62,0.29389521]
[1743901287100,0.29377997,592.74,591.63,0.29389521]
[1743901287297,0.29377997,592.74,591.64,0.29389521]
[1743901287496,0.29377997,592.74,591.65,0.29389521]
[1743901287697,0.29377997,592.74,591.66,0.29389521]
[1743901287900,0.29377997,592.74,591.61,0.29389521]
[1743901288102,0.29377997,592.74,591.62,0.29389521]
[1743901288301,0.29377997,592.74,591.66,1.25827326]
[1743901288501,0.98840468,592.76,591.67,0.29389521]
[1743901288897,0.29376881,592.75,591.67,0.29389521]
[1743901290402,0.29376881,592.75,591.76,1.25827326]
[1743901290596,0.29376881,592.75,591.77,0.29389521]
[1743901290800,0.29376881,592.75,591.76,1.25827326]
[1743901291000,0.29376881,592.75,591.77,0.29388899]
[1743901291502,0.98840468,592.76,591.77,0.29388899]
[1743901291803,0.29375641,592.74,591.77,0.29388899]
[1743901292004,0.29375641,592.74,591.78,1.25827326]
[1743901292204,0.29375641,592.74,591.79,0.29388899]
[1743901292401,0.29375641,592.74,591.78,1.25827326]
[1743901292598,0.29375641,592.74,591.79,0.29388899]
[1743901294408,0.29375641,592.74,591.82,1.25827326]
[1743901294603,0.29375641,592.74,591.83,0.29388899]
[1743901295802,0.29375641,592.74,591.82,1.25827326]
[1743901296007,0.29375641,592.74,591.83,0.29388929]
[1743901296308,0.29375641,592.74,591.86,1.25827326]
[1743901296507,0.29375641,592.74,591.87,0.29388929]
[1743901297411,0.29375641,592.74,591.86,1.25827326]
[1743901297610,0.98840468,592.76,591.87,0.29388929]
[1743901298010,0.29374401,592.75,591.87,0.29388929]
[1743901299010,0.29374401,592.75,591.82,0.29388929]
[1743901299812,0.29374401,592.75,591.83,0.29389083]
[1743901300012,0.29374401,592.75,591.84,0.29389083]
[1743901300204,0.29374401,592.75,591.82,0.29389083]
[1743901300406,0.29374401,592.75,591.83,0.29389083]
[1743901300609,0.98840468,592.76,591.82,0.29389083]
[1743901300910,0.98840468,592.76,591.83,0.29389083]
[1743901301107,0.29375021,592.75,591.84,0.29389083]
[1743901301411,0.29375021,592.75,591.85,0.29389083]
[1743901302414,0.29375021,592.75,591.84,1.25827326]
[1743901302616,0.29375021,592.75,591.85,0.29389097]
[1743901303516,0.98840468,592.76,591.85,0.29389097]
[1743901303911,0.29374649,592.74,591.85,0.29389097]
[1743901304416,0.29374649,592.74,591.85,1.55216423]
[1743901304613,0.29374649,592.74,591.86,0.29389097]
[1743901304917,0.33742176,592.73,591.86,0.29389097]
[1743901305118,0.33742176,592.73,591.85,1.25827326]
[1743901306918,0.29376261,592.72,591.85,1.25827326]
[1743901307122,0.33743314,592.71,591.85,1.25827326]
[1743901307518,0.559,592.7,591.85,1.25827326]
[1743901307719,0.89643883,592.7,591.63,1.25827326]
[1743901307920,0.89643883,592.7,591.64,0.2939351]
[1743901308919,0.89643883,592.7,591.63,1.25827326]
[1743901309118,0.89643883,592.7,591.65,0.29379485]
[1743901309316,0.89643883,592.7,591.66,0.29392922]
[1743901309719,0.89643883,592.7,591.64,0.29392922]
[1743901309920,0.89643883,592.7,591.65,0.58772407]
[1743901310218,0.89643883,592.7,591.66,0.29392922]
[1743901310919,0.29379857,592.69,591.66,0.29392922]
[1743901315523,0.89643883,592.7,591.66,0.29392922]
[1743901315721,0.89643883,592.7,591.58,0.29392922]
[1743901315922,0.29380229,592.68,591.58,0.29392922]
[1743901316722,0.29380229,592.68,591.68,1.25827326]
[1743901316922,0.29380229,592.68,591.69,0.29392922]
[1743901318522,0.89643883,592.7,591.69,0.29392922]
[1743901318721,0.33744453,592.69,591.69,0.29392922]
[1743901318921,0.29379113,592.67,591.69,0.29392922]
[1743901319422,0.569,592.66,591.69,0.29392922]
[1743901320623,0.569,592.66,591.68,1.25827326]
[1743901320823,0.569,592.66,591.69,1.55220758]
[1743901321024,0.569,592.66,591.7,0.29393432]
[1743901322025,0.29379113,592.65,591.7,0.29393432]
[1743901322824,0.29379113,592.65,591.65,0.29393432]
[1743901323025,0.29379113,592.65,591.66,0.29393432]
[1743901323225,0.29379113,592.65,591.65,0.29393432]
[1743901323525,0.29379113,592.65,591.66,0.2939292]
[1743901323829,0.29379113,592.65,591.65,0.2939292]
[1743901324125,0.29379113,592.65,591.64,0.29379113]
[1743901324326,0.29379113,592.65,591.65,0.2939307]
[1743901324530,0.569,592.66,591.65,0.2939307]
[1743901324729,0.504,592.64,591.66,0.2939307]
[1743901324930,0.79780849,592.64,591.64,0.29380849]
[1743901325230,0.79780849,592.64,591.65,0.2939307]
[1743901327031,0.79780849,592.64,591.65,1.55220396]
[1743901327236,0.79780849,592.64,591.66,0.2939307]
[1743901327537,0.504,592.64,591.66,0.2939307]
[1743901327838,0.29378493,592.63,591.66,0.2939307]
[1743901328537,0.29378493,592.63,591.65,1.55205571]
[1743901328732,0.29378493,592.63,591.66,0.29391278]
[1743901328938,0.29378493,592.63,591.68,1.25827326]
[1743901329132,0.29378493,592.63,591.69,0.29391278]
[1743901330239,0.29378493,592.63,591.68,1.25827326]
[1743901330438,0.29378493,592.63,591.69,0.29391465]
[1743901330738,0.504,592.64,591.69,0.29391465]
[1743901331040,0.29378121,592.62,591.69,0.29391465]
[1743901331739,0.29378121,592.62,591.69,1.55218791]
[1743901331940,0.29378121,592.62,591.7,0.29391329]
[1743901333445,0.29378121,592.62,591.69,1.25827326]
[1743901333638,0.29378121,592.62,591.71,0.2939111]
[1743901333843,0.29378121,592.62,591.72,0.2939111]
[1743901334044,0.29378121,592.62,591.7,0.2939111]
[1743901334240,0.29378121,592.62,591.71,0.2939111]
[1743901334440,0.29378121,592.62,591.69,0.2939111]
[1743901334645,0.29378121,592.62,591.7,0.2939111]
[1743901334846,0.29378121,592.62,591.69,0.2939111]
[1743901335040,0.29378121,592.62,591.7,0.2939111]
[1743901335239,0.29378121,592.62,591.69,0.2939111]
[1743901335443,0.29378121,592.62,591.7,0.2939111]
[1743901335639,0.29378121,592.62,591.71,0.2939111]
[1743901335840,0.29378121,592.62,591.69,0.2939111]
[1743901336041,0.29378121,592.62,591.7,0.2939111]
[1743901336245,0.29378121,592.62,591.69,0.2939111]
[1743901336442,0.29378121,592.62,591.71,0.2939111]
[1743901336646,0.29378121,592.62,591.72,0.2939111]
[1743901336848,0.29378121,592.62,591.73,0.2939111]
[1743901337046,0.29378121,592.62,591.69,0.2939111]
[1743901337345,0.29378121,592.62,591.7,0.2939111]
[1743901337546,0.29378121,592.62,591.71,0.2939111]
[1743901337847,0.29378121,592.62,591.72,0.2939111]
[1743901339552,0.504,592.64,591.71,1.25827326]
[1743901339747,0.504,592.64,591.72,0.2938138]
[1743901339948,0.504,592.64,591.72,1.55208706]
[1743901340244,0.504,592.64,591.73,0.2938138]
[1743901342850,0.504,592.64,591.72,1.25827326]
[1743901343045,0.504,592.64,591.73,0.29381059]
[1743901343645,0.33744453,592.69,591.73,0.29381059]
[1743901346249,1.10544453,592.69,591.73,0.29381059]
[1743901347552,1.91044453,592.69,591.73,0.29381059]
[1743901349455,1.91044453,592.69,591.74,0.29381059]
[1743901349654,1.91044453,592.69,591.75,0.29381059]
[1743901349854,1.91044453,592.69,591.76,0.29381059]
[1743901350150,1.91044453,592.69,591.77,0.29381059]
[1743901350348,1.91044453,592.69,591.73,0.29381059]
[1743901350655,1.91044453,592.69,591.78,1.25827326]
[1743901350852,1.91044453,592.69,591.79,0.29381059]
[1743901351350,1.91044453,592.69,591.8,0.29380689]
[1743901351554,1.91044453,592.69,591.79,0.29380689]
[1743901351754,1.91044453,592.69,591.8,0.29380689]
[1743901351954,1.91044453,592.69,591.79,0.29380689]
[1743901352155,1.91044453,592.69,591.8,0.29380689]
[1743901352452,1.91044453,592.69,591.81,0.29380689]
[1743901352655,1.91044453,592.69,591.79,0.29380689]
[1743901352857,1.91044453,592.69,591.78,1.25827326]
[1743901353050,1.91044453,592.69,591.79,0.29380447]
[1743901353555,1.91044453,592.69,591.75,1.25827326]
[1743901353756,1.91044453,592.69,591.76,0.29380449]
[1743901355751,1.91044453,592.69,591.75,0.29380449]
[1743901355955,1.91044453,592.69,591.76,0.29380449]
[1743901356155,1.91044453,592.69,591.75,0.29380449]
[1743901356353,1.91044453,592.69,591.74,0.29371922]
[1743901356555,1.91044453,592.69,591.75,0.2938042]
[1743901357860,1.91044453,592.69,591.76,0.2938042]
[1743901358055,1.91044453,592.69,591.75,0.2938042]
[1743901360962,1.91044453,592.69,591.74,0.29372294]
[1743901361164,1.91044453,592.69,591.75,0.2938042]
[1743901361362,1.91044453,592.69,591.74,0.29372294]
[1743901361564,1.91044453,592.69,591.75,0.29381011]
[1743901362862,1.91044453,592.69,591.74,0.29372294]
[1743901363165,1.91044453,592.69,591.75,0.29380453]
[1743901363367,1.91044453,592.69,591.76,0.29380453]
[1743901363661,1.91044453,592.69,591.72,0.3379977]
[1743901363861,1.91044453,592.69,591.75,0.29372294]
[1743901364165,1.91044453,592.69,591.76,0.29380418]
[1743901364365,1.91044453,592.69,591.77,0.29380418]
[1743901364566,1.91044453,592.69,591.78,0.29380418]
[1743901364766,1.91044453,592.69,591.79,0.29380418]
[1743901364961,1.91044453,592.69,591.8,0.29380418]
[1743901365164,1.91044453,592.69,591.81,0.29380418]
[1743901365461,1.91044453,592.69,591.75,0.29372294]
[1743901365462,1.91044453,592.69,591.82,0.29380418]
[1743901365661,1.91044453,592.69,591.75,0.29372294]
[1743901365662,1.91044453,592.69,591.9,1.25827326]
[1743901365865,1.91044453,592.69,591.91,0.29380418]
[1743901366266,1.91044453,592.69,591.9,1.25827326]
[1743901366462,1.91044453,592.69,591.91,0.29380451]
[1743901367867,1.91044453,592.69,591.94,1.25827326]
[1743901368066,1.91044453,592.69,591.95,0.29380421]
[1743901369566,1.91044453,592.69,591.98,1.25827326]
[1743901369761,1.91044453,592.69,591.99,0.29380421]
[1743901372167,1.91044453,592.69,592.0,0.29380421]
[1743901372370,1.91044453,592.69,591.97,0.29380421]
[1743901372571,1.91044453,592.69,591.98,0.29380421]
[1743901372767,1.91044453,592.69,591.99,0.29380421]
[1743901372969,1.91044453,592.69,591.97,0.29380421]
[1743901374174,1.91044453,592.69,591.98,1.25827326]
[1743901374367,1.91044453,592.69,591.99,0.29380421]
[1743901377073,1.91044453,592.69,592.0,1.25827326]
[1743901377275,1.91044453,592.69,592.01,0.29380421]
[1743901379275,1.91044453,592.69,592.0,0.29380421]
[1743901380978,1.91044453,592.69,591.99,1.25827326]
[1743901381177,1.91044453,592.69,592.0,0.29380352]
[1743901381477,1.91044453,592.69,592.03,1.25827326]
[1743901381678,1.91044453,592.69,592.04,0.29380352]
[1743901383879,1.91044453,592.69,592.05,1.25827326]
[1743901384080,1.91044453,592.69,592.06,0.29380352]
[1743901386782,1.91044453,592.69,592.06,1.55207678]
[1743901387081,1.91044453,592.69,592.07,0.29380352]
[1743901388082,1.91044453,592.69,592.08,0.29380352]
[1743901388282,1.91044453,592.69,592.07,0.29380352]
[1743901390083,1.91044453,592.69,592.06,1.25827326]
[1743901391585,1.91044453,592.69,591.88,0.2936808]
[1743901393588,1.91044453,592.69,591.57,1.25827326]
[1743901393792,1.91044453,592.69,591.73,0.29382237]
[1743901393983,1.91044453,592.69,591.73,0.58758126]
[1743901394184,0.29375889,592.68,591.74,0.29382192]
[1743901395686,0.29375889,592.68,591.73,0.29375889]
[1743901395896,0.29375889,592.68,591.74,0.29382254]
[1743901396593,0.33744453,592.69,591.74,0.29382254]
[1743901396792,0.33744453,592.69,591.75,0.29382254]
[1743901396997,0.29374029,592.68,591.73,0.58756283]
[1743901397197,0.755,592.67,591.74,0.29382254]
[1743901397394,0.776,592.66,591.75,0.29382127]
[1743901397595,0.776,592.66,591.73,0.29374029]
[1743901397596,0.776,592.66,591.74,0.29382127]
[1743901397796,0.776,592.66,591.75,0.29382127]
[1743901397993,0.776,592.66,591.74,0.29382127]
[1743901398192,0.776,592.66,591.75,0.29382127]
[1743901398397,0.776,592.66,591.76,0.29382127]
[1743901398598,0.776,592.66,591.74,0.29382127]
[1743901398894,0.776,592.66,591.75,0.29382127]
[1743901399098,0.776,592.66,591.76,0.29382127]
[1743901399394,0.776,592.66,591.77,0.29382127]
[1743901399795,0.776,592.66,591.78,0.29382127]
[1743901399995,0.776,592.66,591.75,0.29374649]
[1743901400198,0.776,592.66,591.76,0.29382127]
[1743901400600,0.776,592.66,591.76,1.55209453]
[1743901400801,0.776,592.66,591.77,0.29382127]
[1743901403104,0.776,592.66,591.78,0.29382452]
[1743901403305,0.776,592.66,591.77,0.29382452]
[1743901403604,0.776,592.66,591.78,0.29382452]
[1743901403900,0.776,592.66,591.79,0.29382452]
[1743901404106,0.776,592.66,591.76,1.55201479]
[1743901404301,0.776,592.66,591.77,0.29381943]
[1743901405606,0.776,592.66,591.76,1.55201479]
[1743901405807,0.776,592.66,591.8,1.25827326]
[1743901406006,0.776,592.66,591.81,0.29381459]
[1743901407207,0.776,592.66,591.8,1.25827326]
[1743901407507,0.776,592.66,591.81,0.29381519]
[1743901407706,0.776,592.66,591.82,0.29381519]
[1743901407906,0.776,592.66,591.81,0.29381519]
[1743901408107,0.776,592.66,591.82,0.29381519]
[1743901408307,0.776,592.66,591.81,0.29381519]
[1743901408501,0.29374153,592.67,591.81,0.29381519]
[1743901408807,0.33744453,592.69,591.98,1.25827326]
[1743901409002,0.29373286,592.67,591.99,0.29381519]
[1743901410007,0.33744453,592.69,591.99,0.29381519]
[1743901410508,0.88944453,592.69,591.99,0.29381519]
[1743901410708,0.88944453,592.69,592.0,0.29379728]
[1743901411007,0.88944453,592.69,592.01,0.29379728]
[1743901411207,0.88944453,592.69,591.99,0.29379728]
[1743901411407,0.88944453,592.69,592.05,1.25827326]
[1743901411607,1.55144453,592.69,592.06,0.29379728]
[1743901412607,1.214,592.69,592.06,0.29379728]
[1743901412809,1.214,592.69,592.05,1.25827326]
[1743901413009,1.214,592.69,592.06,0.29376201]
[1743901414008,1.214,592.69,592.07,0.29376201]
[1743901414208,1.214,592.69,591.94,0.29376201]
[1743901415509,1.214,592.69,591.93,1.25827326]
[1743901415710,1.214,592.69,591.94,0.29375934]
[1743901416411,1.214,592.69,591.91,0.29375934]
[1743901416605,1.214,592.69,591.92,0.29375934]
[1743901416809,1.214,592.69,591.91,0.29375934]
[1743901417009,1.214,592.69,591.9,1.25827326]
[1743901417210,1.214,592.69,591.92,0.29375903]
[1743901417408,1.214,592.69,591.93,0.29375903]
[1743901417610,1.214,592.69,591.91,0.29375903]
[1743901417809,1.214,592.69,591.92,0.29375903]
[1743901418009,1.214,592.69,591.93,0.29375903]
[1743901418205,1.214,592.69,591.91,0.29375903]
[1743901418407,1.214,592.69,591.92,0.29375903]
[1743901418606,1.214,592.69,591.85,0.29375903]
[1743901418808,1.214,592.69,591.93,0.29375903]
[1743901419008,1.214,592.69,591.94,0.29375903]
[1743901419211,1.214,592.69,591.85,0.29375903]
[1743901421615,1.214,592.69,591.86,0.29375903]
[1743901421815,1.214,592.69,591.84,0.29375903]
[1743901422010,1.214,592.69,591.83,1.25827326]
[1743901422217,1.214,592.69,591.84,0.29376537]
[1743901422612,1.214,592.69,591.83,1.25827326]
[1743901422817,1.214,592.69,591.84,0.29376518]
[1743901423512,1.214,592.69,591.79,0.29376518]
[1743901423715,1.214,592.69,591.78,1.25827326]
[1743901423915,1.214,592.69,591.79,0.58746828]
[1743901424121,1.214,592.69,591.8,0.29376517]
[1743901426021,1.214,592.69,591.9,1.25827326]
[1743901426215,1.214,592.69,591.91,0.29376517]
[1743901427621,1.214,592.69,591.9,1.25827326]
[1743901427814,1.214,592.69,591.91,0.29376583]
[1743901431218,1.214,592.69,591.94,1.25827326]
[1743901431424,1.214,592.69,591.95,0.29376583]
[1743901432526,1.214,592.69,591.94,1.25827326]
[1743901432726,1.214,592.69,591.95,0.29378691]
[1743901433728,1.214,592.69,591.96,0.29378694]
[1743901433920,1.214,592.69,591.88,0.29378694]
[1743901435229,1.214,592.69,591.88,1.5520602]
[1743901435427,1.214,592.69,591.89,0.29378694]
[1743901436735,1.214,592.69,591.88,1.55197637]
[1743901437031,1.214,592.69,591.89,0.29378664]
[1743901437234,1.214,592.69,591.89,1.5520599]
[1743901437433,1.214,592.69,591.9,0.29378664]
[1743901439534,1.214,592.69,591.89,0.29378664]
[1743901439735,1.214,592.69,591.9,0.29378664]
[1743901439932,1.214,592.69,591.91,0.29378664]
[1743901440133,1.214,592.69,591.89,0.29378664]
[1743901442034,1.214,592.69,591.9,0.29378664]
[1743901442234,1.214,592.69,591.89,0.29378664]
[1743901442435,1.214,592.69,591.94,1.25827326]
[1743901442634,1.214,592.69,591.95,0.29378664]
[1743901443041,1.214,592.69,591.94,1.25827326]
[1743901443239,1.214,592.69,591.95,0.29378484]
[1743901444440,1.214,592.69,592.02,1.25827326]
[1743901444841,1.214,592.69,592.03,0.29378645]
[1743901446240,1.214,592.69,592.02,1.25827326]
[1743901446443,1.214,592.69,592.03,0.2937856]
[1743901447238,1.214,592.69,592.04,1.25827326]
[1743901447443,1.214,592.69,592.05,0.2937856]
[1743901448136,1.214,592.69,592.04,1.25827326]
[1743901448343,1.214,592.69,592.05,0.29378686]
[1743901449841,1.214,592.69,592.04,1.25827326]
[1743901449842,1.214,592.69,592.06,0.29378425]
[1743901450038,1.214,592.69,592.07,0.29378425]
[1743901450343,1.214,592.69,592.08,0.29378425]
[1743901450545,1.214,592.69,591.95,0.29378425]
[1743901450741,1.214,592.69,591.96,0.29378425]
[1743901451047,1.214,592.69,591.97,0.29378425]
[1743901451248,1.214,592.69,591.95,0.29378425]
[1743901453950,1.214,592.69,591.87,0.29378425]
[1743901454151,1.214,592.69,591.88,0.29378425]
[1743901454451,1.214,592.69,591.89,0.29378425]
[1743901454849,1.214,592.69,591.9,0.29378784]